Workbook

Sheet Hoja1
A3: Republica Dominicana
A4: SERVICIO NACIONAL DE SALUD
A5: LISTADO DE ORDENES DE COMPRAS O SERVICIOS PAGADAS DURANTE EL MES ENERO 2023
A6: ESTABLECIMIENTO HOSPITAL PROVINCIAL RICARDO LIMARDO REGION_____II
A7: Fecha | B7: No. Orden de Compra o Servicios | C7: No. De Factura Fiscal NCF | D7: Fuente. Financ (FR-VS) | E7: Beneficiario | F7: Rubro | G7: No. Cta. Objetal del Gasto | H7: Valor
A8: 2023-01-04 | B8: 17572 | C8: B1100000055 | D8: VS | E8: WILLMERS JOAQUIN SERRANO GERMOSEN. | F8: SERVICIOS DE INSTALACION DE COMPRESOR AREA DE ODONTOLOGIA | G8: 2272-08. | H8: 2,500.00
A10: 2022-12-02 | B10: 17341 | C10: B1500000217 | D10: VS | E10: DOMINGO CASTILLO. | F10: COMPRA DE FRUTAS Y VEGETALES | G10: 2313-02. | H10: 20,035.00
A11: 2022-12-02 | B11: 17342 | C11: B1500000218 | D11: VS | E11: DOMINGO CASTILLO. | F11: COMPRA DE FRUTAS Y VEGETALES | G11: 2313-02. | H11: 62,425.00
A12: 2022-12-09 | B12: 17412 | C12: B1500000219 | D12: VS | E12: DOMINGO CASTILLO. | F12: COMPRA DE FRUTAS Y VEGETALES | G12: 2313-02. | H12: 20,585.00
A13: 2022-12-09 | B13: 17413 | C13: B1500000220 | D13: VS | E13: DOMINGO CASTILLO. | F13: COMPRA DE FRUTAS Y VEGETALES | G13: 2313-02. | H13: 65,725.00
A14: 2022-12-16 | B14: 17456 | C14: B1500000221 | D14: VS | E14: DOMINGO CASTILLO. | F14: COMPRA DE FRUTAS Y VEGETALES | G14: 2313-02. | H14: 19,665.00
A15: 2022-12-16 | B15: 17457 | C15: B1500000222 | D15: VS | E15: DOMINGO CASTILLO. | F15: COMPRA DE FRUTAS Y VEGETALES | G15: 2313-02. | H15: 71,825.00
A16: 2022-12-13 | B16: 17437 | C16: B1500000223 | D16: VS | E16: DOMINGO CASTILLO. | F16: COMPRA DE FRUTAS Y VEGETALES | G16: 2313-02. | H16: 9,630.00
A17: 2022-12-26 | B17: 17505 | C17: B1500000224 | D17: VS | E17: DOMINGO CASTILLO. | F17: COMPRA DE FRUTAS Y VEGETALES | G17: 2313-02. | H17: 19,315.00
A18: 2022-12-26 | B18: 17506 | C18: B1500000225 | D18: VS | E18: DOMINGO CASTILLO. | F18: COMPRA DE FRUTAS Y VEGETALES | G18: 2313-02. | H18: 67,540.00
H19: =SUM(H10:H18) -> 356,745.00
A21: 2022-12-30 | B21: 17539 | C21: B1500000048 | D21: VS | E21: CARLOS DAVID TAVAREZ SANTOS. | F21: SERVICIOS DE CATERING P/ CAFETERIA. | G21: 2292-03. | H21: 19,875.00
A23: 2022-12-13 | B23: 17435 | C23: B1500019899 | D23: VS | E23: CORPORACION DE ACUEDUCTO Y ALC. | F23: SERVICIOS DE AGUA. | G23: 2217-01. | H23: 82,728.00
A25: 2022-12-29 | B25: 17522 | C25: B1500000070 | D25: VS | E25: NEYDA M. CRUZ LANTIGUA.10% | F25: PAGO ESTUDIOS REALIZADOS. | G25: 2287-06. | H25: 151,600.00
A27: 2022-12-22 | B27: 17503 | C27: B1500000148 | D27: VS | E27: MIGUEL LEONARDO LOPEZ.10% | F27: ALQUILER DE EQUIPOS PARA ESTUDIOS. | G27: 2253-04. | H27: 130,000.00
A29: 2022-12-02 | B29: 17331 | C29: B1500000309 | D29: VS | E29: ALMACEN SILVERIO PEREZ, SRL. | F29: ALIMENTOS,PLASTICOS. | G29: 2311-01/2355-01. | H29: 116,399.00
A30: 2022-12-02 | B30: 17330 | C30: B1500000310 | D30: VS | E30: ALMACEN SILVERIO PEREZ, SRL. | F30: ALIMENTOS. | G30: 2311-01. | H30: 93,841.73
A31: 2022-12-09 | B31: 17405 | C31: B1500000313 | D31: VS | E31: ALMACEN SILVERIO PEREZ, SRL. | F31: ALIMENTOS. | G31: 2311-01. | H31: 90,435.11
A32: 2022-12-09 | B32: 17404 | C32: B1500000315 | D32: VS | E32: ALMACEN SILVERIO PEREZ, SRL. | F32: ALIMENTOS,PLASTICOS. | G32: 2311-01/2355-01. | H32: 111,370.00
A33: 2022-12-15 | B33: 17447 | C33: B1500000318 | D33: VS | E33: ALMACEN SILVERIO PEREZ, SRL. | F33: ALIMENTOS,PLASTICOS. | G33: 2311-01/2355-01. | H33: 110,677.00
A34: 2022-12-15 | B34: 17448 | C34: B1500000319 | D34: VS | E34: ALMACEN SILVERIO PEREZ, SRL. | F34: ALIMENTOS. | G34: 2311-01. | H34: 126,259.09
A35: 2022-12-16 | B35: 17450 | C35: B1500000320 | D35: VS | E35: ALMACEN SILVERIO PEREZ, SRL. | F35: PLASTICOS. | G35: 2355-01. | H35: 6,160.00
A36: 2022-12-19 | B36: 17453 | C36: B1500000321 | D36: VS | E36: ALMACEN SILVERIO PEREZ, SRL. | F36: PAPEL, MATERIAL DE LIMPIEZA. | G36: 2332-01/2391-01. | H36: 49,250.00
A37: 2022-02-23 | B37: 17499 | C37: B1500000322 | D37: VS | E37: ALMACEN SILVERIO PEREZ, SRL. | F37: ALIMENTOS,PLASTICOS. | G37: 2311-01/2355-01. | H37: 92,335.00
A38: 2022-02-23 | B38: 17500 | C38: B1500000324 | D38: VS | E38: ALMACEN SILVERIO PEREZ, SRL. | F38: ALIMENTOS. | G38: 2311-01. | H38: 90,256.39
A39: 2022-12-30 | B39: 17536 | C39: B1500000325 | D39: VS | E39: ALMACEN SILVERIO PEREZ, SRL. | F39: ALIMENTOS. | G39: 2311-01. | H39: 87,682.44
A40: 2022-12-30 | B40: 17537 | C40: B1500000328 | D40: VS | E40: ALMACEN SILVERIO PEREZ, SRL. | F40: ALIMENTOS,PLASTICOS. | G40: 2311-01/2355-01. | H40: 108,540.00
H41: =SUM(H29:H40) -> 1,083,205.76
A43: 2022-12-05 | B43: 17376 | C43: B1500000459 | D43: VS | E43: JUAN LUIS ALMONTE REYES | F43: ALIMENTOS,PLASTICOS. | G43: 2311-01/2355-01. | H43: 104,434.72
A44: 2022-12-12 | B44: 17426 | C44: B1500000463 | D44: VS | E44: JUAN LUIS ALMONTE REYES | F44: ALIMENTOS,LIMPIEZA,MAT.DE OFICINA. | G44: 2311-01/2392-01/2391-01 | H44: 87,993.20
A45: 2022-12-19 | B45: 17477 | C45: B1500000466 | D45: VS | E45: JUAN LUIS ALMONTE REYES | F45: ALIMENTOS,PLASTICOS,LIMPIEZA. | G45: 2311-01/2355-01/2391-01 | H45: 77,233.00
A46: 2022-12-26 | B46: 17411 | C46: B1500000467 | D46: VS | E46: JUAN LUIS ALMONTE REYES | F46: ALIMENTOS,PLASTICOS. | G46: 2311-01/2355-01. | H46: 75,665.50
H47: =SUM(H43:H46) -> 345,326.42
A49: 2022-12-05 | B49: 17414 | C49: B1500003028 | D49: VS | E49: SOLUCIONES & TECNOLOGIAS HABILES, SRL | F49: ALQUILER DE EQUIPOS(FOTOCOPIADORAS) | G49: 2253-04. | H49: 4,395.15
A50: 2022-12-05 | B50: 17415 | C50: B1500003029 | D50: VS | E50: SOLUCIONES & TECNOLOGIAS HABILES, SRL | F50: ALQUILER DE EQUIPOS(FOTOCOPIADORAS) | G50: 2253-04. | H50: 22,979.73
A51: 2022-12-05 | B51: 17416 | C51: B1500003030 | D51: VS | E51: SOLUCIONES & TECNOLOGIAS HABILES, SRL | F51: ALQUILER DE EQUIPOS(FOTOCOPIADORAS) | G51: 2253-04. | H51: 4,130.00
A52: 2022-12-05 | B52: 17417 | C52: B1500003031 | D52: VS | E52: SOLUCIONES & TECNOLOGIAS HABILES, SRL | F52: ALQUILER DE EQUIPOS(FOTOCOPIADORAS) | G52: 2253-04. | H52: 4,130.00
A53: 2022-12-05 | B53: 17418 | C53: B1500003032 | D53: VS | E53: SOLUCIONES & TECNOLOGIAS HABILES, SRL | F53: ALQUILER DE EQUIPOS(FOTOCOPIADORAS) | G53: 2253-04. | H53: 4,130.00
A54: 2022-12-05 | B54: 17419 | C54: B1500003033 | D54: VS | E54: SOLUCIONES & TECNOLOGIAS HABILES, SRL | F54: ALQUILER DE EQUIPOS(FOTOCOPIADORAS) | G54: 2253-04. | H54: 4,130.00
H55: =SUM(H49:H54) -> 43,894.88
A57: 2022-11-02 | B57: 17462 | C57: B1500002844 | D57: VS | E57: CENTRO MEDICO BOURNIGAL, S.A.S. | F57: ESTUDIOS. | G57: 2287-06. | H57: 1,120.00
A58: 2022-11-02 | B58: 17463 | C58: B1500002845 | D58: VS | E58: CENTRO MEDICO BOURNIGAL, S.A.S. | F58: ESTUDIOS. | G58: 2287-06. | H58: 3,872.00
A59: 2022-11-07 | B59: 17464 | C59: B1500002849 | D59: VS | E59: CENTRO MEDICO BOURNIGAL, S.A.S. | F59: ESTUDIOS. | G59: 2287-06. | H59: 3,872.00
A60: 2022-11-12 | B60: 17465 | C60: B1500002869 | D60: VS | E60: CENTRO MEDICO BOURNIGAL, S.A.S. | F60: ESTUDIOS. | G60: 2287-06. | H60: 3,872.00
A61: 2022-11-14 | B61: 17466 | C61: B1500002871 | D61: VS | E61: CENTRO MEDICO BOURNIGAL, S.A.S. | F61: ESTUDIOS. | G61: 2287-06. | H61: 1,120.00
A62: 2022-11-25 | B62: 17467 | C62: B1500002887 | D62: VS | E62: CENTRO MEDICO BOURNIGAL, S.A.S. | F62: ESTUDIOS. | G62: 2287-06. | H62: 15,488.00
A63: 2022-11-29 | B63: 17469 | C63: B1500002888 | D63: VS | E63: CENTRO MEDICO BOURNIGAL, S.A.S. | F63: ESTUDIOS. | G63: 2287-06. | H63: 17,088.00
A64: 2022-11-29 | B64: 17470 | C64: B1500002889 | D64: VS | E64: CENTRO MEDICO BOURNIGAL, S.A.S. | F64: ESTUDIOS. | G64: 2287-06. | H64: 3,872.00
A65: 2022-12-01 | B65: 17316 | C65: B1500002891 | D65: VS | E65: CENTRO MEDICO BOURNIGAL, S.A.S. | F65: MEDICAMENTOS. | G65: 2341-01. | H65: 1,117.80
A66: 2022-12-01 | B66: 17323 | C66: B1500002892 | D66: VS | E66: CENTRO MEDICO BOURNIGAL, S.A.S. | F66: MEDICAMENTOS. | G66: 2341-01. | H66: 6,727.50
A67: 2022-12-01 | B67: 17318 | C67: B1500002893 | D67: VS | E67: CENTRO MEDICO BOURNIGAL, S.A.S. | F67: MATERIAL MEDICO QX. | G67: 2393-01. | H67: 1,968.96
A68: 2022-12-01 | B68: 17528 | C68: B1500002894 | D68: VS | E68: CENTRO MEDICO BOURNIGAL, S.A.S. | F68: ESTUDIOS. | G68: 2287-06. | H68: 3,872.00
A69: 2022-12-02 | B69: 17471 | C69: B1500002896 | D69: VS | E69: CENTRO MEDICO BOURNIGAL, S.A.S. | F69: ESTUDIOS. | G69: 2287-06. | H69: 4,539.00
A70: 2022-12-03 | B70: 17344 | C70: B1500002897 | D70: VS | E70: CENTRO MEDICO BOURNIGAL, S.A.S. | F70: MATERIAL MEDICO QX. | G70: 2393-01. | H70: 9,202.80
A71: 2022-12-05 | B71: 17529 | C71: B1500002898 | D71: VS | E71: CENTRO MEDICO BOURNIGAL, S.A.S. | F71: ESTUDIOS. | G71: 2287-06. | H71: 3,872.00
A72: 2022-12-06 | B72: 17386 | C72: B1500002899 | D72: VS | E72: CENTRO MEDICO BOURNIGAL, S.A.S. | F72: MEDICAMENTOS. | G72: 2341-01. | H72: 883.35
A73: 2022-12-09 | B73: 17411 | C73: B1500002910 | D73: VS | E73: CENTRO MEDICO BOURNIGAL, S.A.S. | F73: MEDICAMENTOS. | G73: 2341-01. | H73: 6,821.12
A74: 2022-12-10 | B74: 17530 | C74: B1500002911 | D74: VS | E74: CENTRO MEDICO BOURNIGAL, S.A.S. | F74: ESTUDIOS. | G74: 2287-06. | H74: 7,744.00
A75: 2022-12-11 | B75: 17531 | C75: B1500002912 | D75: VS | E75: CENTRO MEDICO BOURNIGAL, S.A.S. | F75: ESTUDIOS. | G75: 2287-06. | H75: 4,539.00
A76: 2022-11-25 | B76: 17468 | C76: B1500002915 | D76: VS | E76: CENTRO MEDICO BOURNIGAL, S.A.S. | F76: ESTUDIOS. | G76: 2287-06. | H76: 4,539.00
A77: 2022-12-13 | B77: 17532 | C77: B1500002917 | D77: VS | E77: CENTRO MEDICO BOURNIGAL, S.A.S. | F77: ESTUDIOS. | G77: 2287-06. | H77: 3,872.00
A78: 2022-12-19 | B78: 17472 | C78: B1500002919 | D78: VS | E78: CENTRO MEDICO BOURNIGAL, S.A.S. | F78: MATERIAL MEDICO QX. | G78: 2393-01. | H78: 665.69
A79: 2022-12-21 | B79: 17484 | C79: B1500002920 | D79: VS | E79: CENTRO MEDICO BOURNIGAL, S.A.S. | F79: MEDICAMENTOS. | G79: 2341-01. | H79: 248.40
A80: 2022-12-26 | B80: 17509 | C80: B1500002932 | D80: VS | E80: CENTRO MEDICO BOURNIGAL, S.A.S. | F80: MEDICAMENTOS. | G80: 2341-01. | H80: 2,686.14
A81: 2022-12-11 | B81: 17533 | C81: B1500002933 | D81: VS | E81: CENTRO MEDICO BOURNIGAL, S.A.S. | F81: ESTUDIOS. | G81: 2287-06. | H81: 4,114.00
A82: 2022-12-12 | B82: 17534 | C82: B1500002934 | D82: VS | E82: CENTRO MEDICO BOURNIGAL, S.A.S. | F82: ESTUDIOS. | G82: 2287-06. | H82: 19,452.00
A83: 2022-12-21 | B83: 17535 | C83: B1500002935 | D83: VS | E83: CENTRO MEDICO BOURNIGAL, S.A.S. | F83: ESTUDIOS. | G83: 2287-06. | H83: 4,114.00
H84: =SUM(H57:H83) -> 141,282.76
A86: 2022-12-01 | B86: 17638 | C86: B1500000546 | D86: VS | E86: TELECABLE CENTRAL PUERTO PLATA PP,SRL. | F86: SERVICIOS DE INTERNET. | G86: 2215-01. | H86: 20,910.00
A87: 2023-01-01 | B87: 17639 | C87: B1500000562 | D87: VS | E87: TELECABLE CENTRAL PUERTO PLATA PP,SRL. | F87: SERVICIOS DE INTERNET. | G87: 2215-01. | H87: 20,910.00
H88: =SUM(H86:H87) -> 41,820.00
A90: 2023-01-16 | B90: 17652 | C90: B1100000056 | D90: VS | E90: HAMLET CASTILLO 2%. | F90: FLETE SANTO DOMINGO. | G90: 2242-01. | H90: 3,600.00
A92: 2022-11-28 | B92: 17197 | C92: B1500189037 | D92: VS | E92: COMPAÑÍA DOMINICANA DE TELEFONOS, S.A. | F92: SERVICIOS DE TELEFONOS FLOTAS. | G92: 2211-01. | H92: 20,830.00
A94: 2022-12-14 | B94: 17441 | C94: B1500002174 | D94: VS | E94: INVERSIONES AQUARIUS, SRL. | F94: COMPRA DE HIELO Y AGUA. | G94: 2311-01. | H94: 1,200.00
A95: 2022-12-19 | B95: 17473 | C95: B1500002176 | D95: VS | E95: INVERSIONES AQUARIUS, SRL. | F95: COMPRA DE HIELO Y AGUA. | G95: 2311-01. | H95: 19,000.00
H96: =SUM(H94:H95) -> 20,200.00
A98: 2022-12-27 | B98: 17519 | C98: B1500001897 | D98: VS | E98: COMBUSTIBLE Y DERIVADOS DEL NORTE, SRL. | F98: COMBUSTIBLES(GASOLINA-GASOIL). | G98: 2371-01/2371-02. | H98: 25,500.04
A99: 2022-12-27 | B99: 17520 | C99: B1500001898 | D99: VS | E99: COMBUSTIBLE Y DERIVADOS DEL NORTE, SRL. | F99: COMBUSTIBLES(GASOLINA-GASOIL). | G99: 2371-01/2371-02. | H99: 2,196.00
A100: 2022-12-06 | B100: 17382 | C100: B1500001899 | D100: VS | E100: COMBUSTIBLE Y DERIVADOS DEL NORTE, SRL. | F100: COMBUSTIBLES(GASOLINA-GASOIL). | G100: 2371-01/2371-02. | H100: 22,160.00
A101: 2022-12-28 | B101: 17521 | C101: B1500001900 | D101: VS | E101: COMBUSTIBLE Y DERIVADOS DEL NORTE, SRL. | F101: COMBUSTIBLES(GASOLINA-GASOIL). | G101: 2371-01/2371-02. | H101: 28,586.40
H102: =SUM(H98:H101) -> 78,442.44
A104: 2022-12-05 | B104: 17400 | C104: B1500006090. | D104: VS | E104: REFRIPARTES, S.A. | F104: COMPRA DE ELECTRICOS. | G104: 2396-01. | H104: 2,790.00
A106: 2023-01-23 | B106: 17721 | C106: B1100000057 | D106: VS | E106: HAMLET CASTILLO 2%. | F106: FLETE SANTO DOMINGO. | G106: 2242-01. | H106: 2,500.00
A108: 2022-10-03 | B108: 16878 | C108: B1500004991 | D108: VS | E108: ALMANZAR ESTEVEZ, SRL. | F108: REACTIVOS Y MATERIAL MEDICO QX. | G108: 2372-03/2393-01. | H108: 509,463.41
A109: 2022-10-19 | B109: 17029 | C109: B1500005059 | D109: VS | E109: ALMANZAR ESTEVEZ, SRL. | F109: REACTIVOS Y MATERIAL MEDICO QX. | G109: 2372-03/2393-01. | H109: 23,053.68
A110: 2022-10-05 | B110: 16911 | C110: B1500005012 | D110: VS | E110: ALMANZAR ESTEVEZ, SRL. | F110: REACTIVOS Y MATERIAL MEDICO QX. | G110: 2372-03/2393-01. | H110: 25,702.97
H111: =SUM(H108:H110) -> 558,220.06
A113: 2022-10-12 | B113: 16991 | C113: B1500001081 | D113: VS | E113: ALMASANA, SRL. | F113: MEDICAMENTOS | G113: 2341-01. | H113: 443,925.00
A114: 2022-10-19 | B114: 17020 | C114: B1500001088 | D114: VS | E114: ALMASANA, SRL. | F114: MEDICAMENTOS | G114: 2341-01. | H114: 24,975.00
A115: 2022-10-31 | B115: 17087 | C115: B1500001096 | D115: VS | E115: ALMASANA, SRL. | F115: MEDICAMENTOS | G115: 2341-01. | H115: 92,475.00
H116: =SUM(H113:H115) -> 561,375.00
A118: 2022-09-21 | B118: 16781 | C118: B1500000218 | D118: VS | E118: AC BIOMATERIALES DOMINICANOS, SRL. | F118: MATERIAL MEDICO QX. | G118: 2393-01. | H118: 117,469.00
A119: 2022-11-14 | B119: 17218 | C119: B1500000227 | D119: VS | E119: AC BIOMATERIALES DOMINICANOS, SRL. | F119: MATERIAL MEDICO QX. | G119: 2393-01. | H119: 100,145.73
H120: =SUM(H118:H119) -> 217,614.73
A122: 2022-11-14 | B122: 17214 | C122: B1500000011. | D122: VS | E122: ATGO, SRL. | F122: MATERIAL MEDICO QX. | G122: 2393-01. | H122: 58,750.00
A124: 2022-11-02 | B124: 17118 | C124: B1500003160 | D124: VS | E124: ANEST, SRL. | F124: MEDICAMENTOS | G124: 2341-01. | H124: 15,000.00
A125: 2022-10-31 | B125: 17086 | C125: B1500003168 | D125: VS | E125: ANEST, SRL. | F125: MEDICAMENTOS | G125: 2341-01. | H125: 108,000.00
H126: =SUM(H124:H125) -> 123,000.00
A129: 2022-10-28 | B129: 17094 | C129: B1500000687. | D129: VS | E129: BLAXCORP, SRL. | F129: REACTIVOS Y MATERIAL MEDICO QX. | G129: 2372-03/2393-01. | H129: 54,241.04
A131: 2022-10-31 | B131: 17095 | C131: B1500010162 | D131: VS | E131: BIO NOVA, SRL. | F131: REACTIVOS Y MATERIAL MEDICO QX. | G131: 2372-03/2393-01. | H131: 144,735.00
A132: 2022-11-02 | B132: 17124 | C132: B1500010188 | D132: VS | E132: BIO NOVA, SRL. | F132: REACTIVOS Y MATERIAL MEDICO QX. | G132: 2372-03/2393-01. | H132: 32,070.00
A133: 2022-11-04 | B133: 17145 | C133: B1500010212 | D133: VS | E133: BIO NOVA, SRL. | F133: REACTIVOS Y MATERIAL MEDICO QX. | G133: 2372-03/2393-01. | H133: 16,100.00
H134: =SUM(H131:H133) -> 192,905.00
A136: 2022-10-31 | B136: 17091 | C136: B1500030311 | D136: VS | E136: BIO NUCLEAR, S.A. | F136: MATERIAL MEDICO QX. | G136: 2393-01. | H136: 20,787.08
A137: 2022-10-31 | B137: 17090 | C137: B1500030313 | D137: VS | E137: BIO NUCLEAR, S.A. | F137: MATERIAL MEDICO QX. | G137: 2393-01. | H137: 15,694.00
A138: 2022-11-01 | B138: 17107 | C138: B1500030327 | D138: VS | E138: BIO NUCLEAR, S.A. | F138: MATERIAL MEDICO QX. | G138: 2393-01. | H138: 41,595.00
H139: =SUM(H136:H138) -> 78,076.08
A141: 2022-10-03 | B141: 16857 | C141: B1500000654 | D141: VS | E141: BRENMARFA IMPORT, SRL. | F141: MEDICAMENTOS | G141: 2341-01. | H141: 48,750.00
A142: 2022-10-05 | B142: 16982 | C142: B1500000655 | D142: VS | E142: BRENMARFA IMPORT, SRL. | F142: MEDICAMENTOS | G142: 2341-01. | H142: 32,500.00
H143: =SUM(H141:H142) -> 81,250.00
A145: 2022-11-02 | B145: 17128 | C145: B1500004728 | D145: VS | E145: CEDUCOMPP, SRL. | F145: MATERIAL DE OFICINA E INFORMATICA. | G145: 2392-01 | H145: 5,242.05
A146: 2022-11-09 | B146: 17160 | C146: B1500004738 | D146: VS | E146: CEDUCOMPP, SRL. | F146: MATERIAL DE OFICINA E INFORMATICA. | G146: 2392-01 | H146: 1,225.01
A147: 2022-11-11 | B147: 17176 | C147: B1500004742 | D147: VS | E147: CEDUCOMPP, SRL. | F147: SERVICIOS DE REPARACION EQUIPO. | G147: 2272-02 | H147: 1,770.00
A148: 2022-11-22 | B148: 17259 | C148: B1500004752 | D148: VS | E148: CEDUCOMPP, SRL. | F148: MATERIAL DE OFICINA E INFORMATICA. | G148: 2392-01 | H148: 2,519.98
A149: 2022-11-29 | B149: 17298 | C149: B1500004766 | D149: VS | E149: CEDUCOMPP, SRL. | F149: SERVICIOS DE REPARACION EQUIPO. | G149: 2272-02 | H149: 4,720.00
A150: 2022-11-30 | B150: 17301 | C150: B1500004772 | D150: VS | E150: CEDUCOMPP, SRL. | F150: MATERIAL DE OFICINA E INFORMATICA. | G150: 2392-01 | H150: 260.00
A151: 2022-12-01 | B151: 17325 | C151: B1500004775 | D151: VS | E151: CEDUCOMPP, SRL. | F151: SERVICIOS DE REPARACION EQUIPO. | G151: 2272-02 | H151: 3,540.00
A152: 2022-12-05 | B152: 17346 | C152: B1500004783 | D152: VS | E152: CEDUCOMPP, SRL. | F152: MATERIAL DE OFICINA E INFORMATICA. | G152: 2392-01 | H152: 11,549.96
A153: 2022-12-06 | B153: 17383 | C153: B1500004785 | D153: VS | E153: CEDUCOMPP, SRL. | F153: MATERIAL DE OFICINA E INFORMATICA. | G153: 2392-01 | H153: 8,301.30
A154: 2022-12-06 | B154: 17385 | C154: B1500004786 | D154: VS | E154: CEDUCOMPP, SRL. | F154: MATERIAL DE OFICINA E INFORMATICA. | G154: 2392-01 | H154: 2,460.01
A155: 2022-12-01 | B155: 17320 | C155: B1500004800 | D155: VS | E155: CEDUCOMPP, SRL. | F155: MATERIAL DE OFICINA E INFORMATICA. | G155: 2392-01 | H155: 6,175.00
A156: 2022-12-14 | B156: 17446 | C156: B1500004814 | D156: VS | E156: CEDUCOMPP, SRL. | F156: MATERIAL DE OFICINA E INFORMATICA. | G156: 2392-01 | H156: 10,000.03
A157: 2022-12-19 | B157: 17460 | C157: B1500004828 | D157: VS | E157: CEDUCOMPP, SRL. | F157: SERVICIOS DE REPARACION EQUIPO. | G157: 2272-02 | H157: 250.01
A158: 2022-12-19 | B158: 17461 | C158: B1500004829 | D158: VS | E158: CEDUCOMPP, SRL. | F158: SERVICIOS DE REPARACION EQUIPO. | G158: 2272-02 | H158: 3,540.00
H159: =SUM(H145:H158) -> 61,553.35
A161: 2022-11-14 | B161: 17200 | C161: B1500001179 | D161: VS | E161: COPEM HOSPICLINIC, SRL. | F161: MEDICAMENTOS Y MATERIAL MEDICO QX. | G161: 2341-01/2393-01. | H161: 45,794.90
A162: 2022-11-24 | B162: 17273 | C162: B1500001214 | D162: VS | E162: COPEM HOSPICLINIC, SRL. | F162: MATERIAL MEDICO QX. | G162: 2393-01. | H162: 26,196.00
H163: =SUM(H161:H162) -> 71,990.90
A165: 2022-10-31 | B165: 17093 | C165: B1500005189 | D165: VS | E165: CRUZ AYALA, SRL. | F165: REACTIVOS Y MATERIAL MEDICO QX. | G165: 2372-03/2393-01. | H165: 340,630.28
A166: 2022-11-02 | B166: 17125 | C166: B1500005196 | D166: VS | E166: CRUZ AYALA, SRL. | F166: REACTIVOS Y MATERIAL MEDICO QX. | G166: 2372-03/2393-01. | H166: 48,806.51
H167: =SUM(H165:H166) -> 389,436.79
A169: 2022-11-04 | B169: 17139 | C169: B1500000461 | D169: VS | E169: CLINIMED, SRL. | F169: MEDICAMENTOS Y MATERIAL MEDICO QX. | G169: 2341-01/2393-01. | H169: 217,425.00
A170: 2022-11-10 | B170: 17174 | C170: B1500000465 | D170: VS | E170: CLINIMED, SRL. | F170: MATERIAL MEDICO QX. | G170: 2393-01. | H170: 204,140.00
H171: =SUM(H169:H170) -> 421,565.00
A173: 2022-11-14 | B173: 17202 | C173: B1500000078. | D173: VS | E173: DIST. E IMPORTADORA ANMARI, SRL. | F173: MEDICAMENTOS | G173: 2341-01. | H173: 8,500.00
A175: 2022-11-14 | B175: 17210 | C175: B1500000277. | D175: VS | E175: DIMEDOM, SRL. | F175: PAPEL PARA SONOGRAFIA. | G175: 2332-01. | H175: 63,999.42
A177: 2022-12-01 | B177: 17322 | C177: B1500000214. | D177: VS | E177: ELECTROMUBELES FRANCIS, SRL. | F177: ELECTRODOMESTICOS. | G177: 2614-01 | H177: 6,800.00
A179: 2022-10-31 | B179: 17083 | C179: B1500001125 | D179: VS | E179: EPX DOMINICANA, SRL. | F179: MEDICAMENTOS | G179: 2341-01. | H179: 35,400.00
A180: 2022-11-14 | B180: 17201 | C180: B1500001164 | D180: VS | E180: EPX DOMINICANA, SRL. | F180: MEDICAMENTOS | G180: 2341-01. | H180: 10,725.00
H181: =SUM(H179:H180) -> 46,125.00
A183: 2022-12-19 | B183: 17474 | C183: B1500000252 | D183: VS | E183: FEC BIOMEDICAL, SRL. | F183: SERVICIOS DE MANT. Y REPARACION DE EQUIPOS. | G183: 2272-04. | H183: 64,900.00
A184: 2022-12-19 | B184: 17475 | C184: B1500000253 | D184: VS | E184: FEC BIOMEDICAL, SRL. | F184: COMPRA DE EQUIPO MEDICO. | G184: 2631-01. | H184: 18,644.00
A185: 2022-12-23 | B185: 17501 | C185: B1500000254 | D185: VS | E185: FEC BIOMEDICAL, SRL. | F185: COMPRA DE EQUIPO MEDICO. | G185: 2631-01. | H185: 45,371.00
H186: =SUM(H183:H185) -> 128,915.00
A188: 2022-10-13 | B188: 16966 | C188: B1500002913 | D188: VS | E188: FARACH, S.A. | F188: MEDICAMENTOS | G188: 2341-01. | H188: 137,506.50
A189: 2022-11-01 | B189: 17109 | C189: B1500002972 | D189: VS | E189: FARACH, S.A. | F189: MEDICAMENTOS | G189: 2341-01. | H189: 112,500.00
A190: 2022-11-11 | B190: 17184 | C190: B1500003019 | D190: VS | E190: FARACH, S.A. | F190: MEDICAMENTOS | G190: 2341-01. | H190: 14,915.00
H191: =SUM(H188:H190) -> 264,921.50
A193: 2022-11-11 | B193: 17181 | C193: B1500000084. | D193: VS | E193: FERMEDCA COMERCIAL, SRL. | F193: MATERIAL MEDICO QX. | G193: 2393-01. | H193: 13,558.20
A195: 2022-11-14 | B195: 17230 | C195: B1500014591 | D195: VS | E195: GAS ANTILLANO, S.A.S. | F195: COMPRA DE GAS | G195: 2371-04. | H195: 52,360.00
A196: 2022-11-07 | B196: 17150 | C196: B1500014661 | D196: VS | E196: GAS ANTILLANO, S.A.S. | F196: COMPRA DE GAS | G196: 2371-04. | H196: 3,690.00
A197: 2022-11-25 | B197: 17287 | C197: B1500014804 | D197: VS | E197: GAS ANTILLANO, S.A.S. | F197: COMPRA DE GAS | G197: 2371-04. | H197: 1,771.20
A198: 2022-12-01 | B198: 17315 | C198: B1500014808 | D198: VS | E198: GAS ANTILLANO, S.A.S. | F198: COMPRA DE GAS | G198: 2371-04. | H198: 3,690.00
A199: 2022-12-13 | B199: 17434 | C199: B1500014829 | D199: VS | E199: GAS ANTILLANO, S.A.S. | F199: COMPRA DE GAS | G199: 2371-04. | H199: 52,360.00
H200: =SUM(H195:H199) -> 113,871.20
A202: 2022-10-06 | B202: 16986 | C202: B1500000507. | D202: VS | E202: GLOBAL MEDICA DOMINICANA GMD, S.A. | F202: MEDICAMENTOS | G202: 2341-01. | H202: 52,200.00
A204: 2022-10-31 | B204: 17085 | C204: B1500000068 | D204: VS | E204: GUZMAN PHARMACEUTICAL GUZPHARM, SRL. | F204: MATERIAL MEDICO QX. | G204: 2393-01. | H204: 35,235.00
A205: 2022-11-11 | B205: 17188 | C205: B1500000071 | D205: VS | E205: GUZMAN PHARMACEUTICAL GUZPHARM, SRL. | F205: MATERIAL MEDICO QX. | G205: 2393-01. | H205: 30,333.20
A206: 1411/2022 | B206: 17207 | C206: B1500000074 | D206: VS | E206: GUZMAN PHARMACEUTICAL GUZPHARM, SRL. | F206: MEDICAMENTOS Y MATERIAL MEDICO QX. | G206: 2341-01/2393-01. | H206: 22,212.80
A207: 2022-11-28 | B207: 17288 | C207: B1500000079 | D207: VS | E207: GUZMAN PHARMACEUTICAL GUZPHARM, SRL. | F207: MATERIAL MEDICO QX. | G207: 2393-01. | H207: 30,600.00
H208: =SUM(H204:H207) -> 118,381.00
A210: 2022-10-17 | B210: 17010 | C210: B1500002265 | D210: VS | E210: GRUPO FARMACEUTICO CAR-M, SRL. | F210: MEDICAMENTOS | G210: 2341-01. | H210: 10,500.00
A211: 2022-10-21 | B211: 17046 | C211: B1500002273 | D211: VS | E211: GRUPO FARMACEUTICO CAR-M, SRL. | F211: MEDICAMENTOS | G211: 2341-01. | H211: 73,000.00
H212: =SUM(H210:H211) -> 83,500.00
A214: 2022-11-02 | B214: 17127 | C214: B1500005596 | D214: VS | E214: HOSPIFAR, SRL. | F214: MATERIAL MEDICO QX. | G214: 2393-01. | H214: 65,230.50
A215: 2022-11-11 | B215: 17183 | C215: B1500005627 | D215: VS | E215: HOSPIFAR, SRL. | F215: MATERIAL MEDICO QX. | G215: 2393-01. | H215: 85,878.63
H216: =SUM(H214:H215) -> 151,109.13
A218: 2022-11-06 | B218: 17092 | C218: B1500000357 | D218: VS | E218: INNOVACIONES MEDICAS DEL CARIBE, SRL. | F218: MEDICAMENTOS | G218: 2341-01. | H218: 135,000.00
A219: 2022-11-14 | B219: 17213 | C219: B1500000369 | D219: VS | E219: INNOVACIONES MEDICAS DEL CARIBE, SRL. | F219: MATERIAL MEDICO QX. | G219: 2393-01. | H219: 16,230.90
H220: =SUM(H218:H219) -> 151,230.90
A222: 2022-11-10 | B222: 17175 | C222: B1500000835. | D222: VS | E222: IMPRESOS CLARK ,SRL | F222: PAPELERIA E IMPRESOS. | G222: 2222-01. | H222: 6,718.50
A224: 2022-12-01 | B224: 17317 | C224: B1500002270 | D224: VS | E224: ING.EDGAR MARTINEZ,SRL | F224: ELECTRICOS. | G224: 2396-01 | H224: 15,118.75
A225: 2022-12-07 | B225: 17393 | C225: B1500002271 | D225: VS | E225: ING.EDGAR MARTINEZ,SRL | F225: MADERA. | G225: 2314-01 | H225: 2,225.00
A226: 2022-12-09 | B226: 17407 | C226: B1500002280 | D226: VS | E226: ING.EDGAR MARTINEZ,SRL | F226: ELECTRICOS. | G226: 2396-01 | H226: 4,049.38
A227: 2022-12-22 | B227: 17517 | C227: B1500002302 | D227: VS | E227: ING.EDGAR MARTINEZ,SRL | F227: MADERA. | G227: 2314-01 | H227: 5,630.00
A228: 2022-12-22 | B228: 17504 | C228: B1500002303 | D228: VS | E228: ING.EDGAR MARTINEZ,SRL | F228: MADERA. | G228: 2314-01 | H228: 2,576.00
H229: =SUM(H224:H228) -> 29,599.13
A231: 2022-12-01 | B231: 17321 | C231: B1500000793 | D231: VS | E231: LA CASA FERRETERA DE PTO. PTA, SRL. | F231: ELECTRICOS. | G231: 2396-01 | H231: 350.00
A232: 2022-12-01 | B232: 17319 | C232: B1500000794 | D232: VS | E232: LA CASA FERRETERA DE PTO. PTA, SRL. | F232: HERRA. MENORES Y METAL. | G232: 2363-04/2363-06 | H232: 8,759.00
A233: 2022-12-02 | B233: 17333 | C233: B1500000795 | D233: VS | E233: LA CASA FERRETERA DE PTO. PTA, SRL. | F233: HERRA. MENORES Y METAL. | G233: 2363-04/2363-06 | H233: 9,535.00
A234: 2022-12-08 | B234: 17398 | C234: B1500000802 | D234: VS | E234: LA CASA FERRETERA DE PTO. PTA, SRL. | F234: HERRA. MENORES Y ELECTRICOS | G234: 2363-04/2396-01 | H234: 3,780.00
A235: 2022-12-09 | B235: 17410 | C235: B1500000805 | D235: VS | E235: LA CASA FERRETERA DE PTO. PTA, SRL. | F235: METAL. | G235: 2363-06 | H235: 520.00
A236: 2022-12-12 | B236: 17422 | C236: B1500000806 | D236: VS | E236: LA CASA FERRETERA DE PTO. PTA, SRL. | F236: HERRA. MENORES Y ELECTRICOS | G236: 2363-04/2396-01 | H236: 5,140.00
A237: 2022-12-13 | B237: 17436 | C237: B1500000807 | D237: VS | E237: LA CASA FERRETERA DE PTO. PTA, SRL. | F237: METAL Y ELECTRICOS. | G237: 2363-06/2396-01. | H237: 4,170.00
A238: 2022-12-14 | B238: 17444 | C238: B1500000811 | D238: VS | E238: LA CASA FERRETERA DE PTO. PTA, SRL. | F238: HERRA. MENORES Y METAL. | G238: 2363-04/2363-06 | H238: 6,650.00
A239: 2022-12-20 | B239: 17481 | C239: B1500000814 | D239: VS | E239: LA CASA FERRETERA DE PTO. PTA, SRL. | F239: METAL. | G239: 2363-06 | H239: 965.00
A240: 2022-12-22 | B240: 17489 | C240: B1500000816 | D240: VS | E240: LA CASA FERRETERA DE PTO. PTA, SRL. | F240: HERRA. MENORES. | G240: 2363-04. | H240: 1,790.00
A241: 2022-12-27 | B241: 17515 | C241: B1500000818 | D241: VS | E241: LA CASA FERRETERA DE PTO. PTA, SRL. | F241: METAL. | G241: 2363-06 | H241: 4,200.00
H242: =SUM(H231:H241) -> 45,859.00
A244: 2022-11-02 | B244: 17146 | C244: B1500002304 | D244: VS | E244: MATEROF, SRL. | F244: PLASTICOS, PAPEL. | G244: 2355-01/2332-01. | H244: 143,658.64
A245: 2022-11-02 | B245: 17147 | C245: B1500002305 | D245: VS | E245: MATEROF, SRL. | F245: MATERIAL DE OFICINA E INFORMATICA | G245: 2392-01. | H245: 159,022.42
H246: =SUM(H244:H245) -> 302,681.06
A248: 2022-10-21 | B248: 17048 | C248: B1500003507 | D248: VS | E248: MEDISAN, SRL. | F248: MEDICAMENTOS | G248: 2341-01. | H248: 14,430.00
A249: 2022-11-14 | B249: 17215 | C249: B1500003555 | D249: VS | E249: MEDISAN, SRL. | F249: MATERIAL MEDICO QX. | G249: 2393-01. | H249: 50,500.00
A250: 2022-11-15 | B250: 17229 | C250: B1500003558 | D250: VS | E250: MEDISAN, SRL. | F250: MATERIAL MEDICO QX. | G250: 2393-01. | H250: 6,600.00
... 109 more rows
